bitfinex-derivatives/quotes_SOLF0:USTF0_20241010
["timestamp","ask_amount","ask_price","bid_price","bid_amount"]
[1728568522985,0.12502,137.63,137.57,27.89]
[1728568523177,0.12502,137.63,137.55,37.4855]
[1728568523886,0.12502,137.63,137.57,27.89]
[1728568524386,0.12502,137.63,137.58,6.68]
[1728568524787,3.6368,137.62,137.58,6.68]
[1728568525382,3.76142,137.63,137.58,6.68]
[1728568525584,0.12502,137.63,137.59,27.89]
[1728568525777,0.12502,137.63,137.58,6.68]
[1728568526786,0.12502,137.63,137.57,7.06]
[1728568527584,0.12502,137.63,137.57,34.95]
[1728568527886,0.12502,137.63,137.58,7.06]
[1728568528477,3.6373,137.6,137.58,7.06]
[1728568529088,3.637,137.61,137.58,7.06]
[1728568530292,3.6367,137.62,137.58,7.06]
[1728568530584,0.12502,137.63,137.58,7.06]
[1728568530788,0.12502,137.63,137.59,27.89]
[1728568530987,0.12502,137.69,137.61,27.89]
[1728568531287,0.12502,137.69,137.63,27.89]
[1728568531479,3.6356,137.66,137.63,27.89]
[1728568532088,3.6356,137.66,137.64,7.06]
[1728568532583,0.12502,137.69,137.64,7.06]
[1728568533494,0.12502,137.69,137.64,10.74358984]
[1728568533686,3.6351,137.68,137.64,10.74358984]
[1728568533884,0.12502,137.69,137.64,10.74358984]
[1728568534288,3.6351,137.68,137.64,10.74358984]
[1728568534490,0.12502,137.69,137.64,7.06]
[1728568534897,3.6352,137.68,137.64,7.06]
[1728568535596,3.6351,137.68,137.64,7.06]
[1728568535789,3.6351,137.68,137.63,27.89]
[1728568536090,3.6353,137.67,137.64,7.06]
[1728568536293,0.12502,137.69,137.64,7.06]
[1728568536692,3.6358,137.66,137.64,7.06]
[1728568536891,3.6358,137.66,137.62,2.7553]
[1728568537100,0.12502,137.69,137.62,9.8153]
[1728568537398,3.6353,137.67,137.62,9.8153]
[1728568537795,3.6351,137.68,137.63,27.89]
[1728568537989,0.12502,137.69,137.63,27.89]
[1728568539597,3.6352,137.68,137.64,7.06]
[1728568539797,3.6352,137.68,137.64,10.63209862]
[1728568539998,0.12502,137.69,137.64,10.63209862]
[1728568540597,3.635,137.68,137.64,7.06]
[1728568540801,0.12502,137.69,137.64,10.77748318]
[1728568541296,3.75992,137.69,137.64,10.77748318]
[1728568542694,0.12502,137.69,137.62,2.7553]
[1728568542896,0.12502,137.69,137.63,7.06]
[1728568543999,0.12502,137.69,137.64,3.59556059]
[1728568544397,0.12502,137.69,137.63,7.06]
[1728568544398,3.6351,137.68,137.63,34.95]
[1728568545701,0.12502,137.69,137.63,34.95]
[1728568545702,3.75982,137.69,137.63,34.95]
[1728568546299,3.75982,137.69,137.64,3.57521392]
[1728568546499,0.12502,137.69,137.63,34.95]
[1728568547003,0.12502,137.69,137.64,7.06]
[1728568547202,0.12502,137.69,137.63,27.89]
[1728568547407,0.12502,137.69,137.64,7.06]
[1728568547609,3.6352,137.68,137.64,7.06]
[1728568547905,0.12502,137.69,137.64,7.06]
[1728568548307,3.76002,137.69,137.64,10.6341237]
[1728568548905,3.76002,137.69,137.65,27.89]
[1728568548906,0.12502,137.69,137.65,27.89]
[1728568549507,3.75982,137.69,137.65,27.89]
[1728568549800,0.12502,137.69,137.65,27.89]
[1728568550000,3.75992,137.69,137.65,27.89]
[1728568550413,0.12502,137.69,137.63,27.89]
[1728568550709,0.12502,137.69,137.64,7.06]
[1728568551097,3.6351,137.68,137.64,7.06]
[1728568551302,0.12502,137.69,137.64,7.06]
[1728568551704,0.12502,137.69,137.65,27.89]
[1728568552403,0.12502,137.69,137.64,7.06]
[1728568552811,3.6354,137.67,137.64,7.06]
[1728568553001,0.12502,137.69,137.63,27.89]
[1728568553207,0.12502,137.69,137.63,34.95]
[1728568553406,3.6354,137.67,137.63,34.95]
[1728568554510,3.6354,137.67,137.64,7.06]
[1728568554708,0.12502,137.69,137.64,7.06]
[1728568555307,3.6354,137.67,137.64,7.06]
[1728568555809,3.6351,137.68,137.64,7.06]
[1728568556008,0.12502,137.69,137.64,7.06]
[1728568556210,0.12502,137.69,137.63,27.89]
[1728568556404,3.6352,137.68,137.63,34.83]
[1728568556607,0.12502,137.69,137.63,34.83]
[1728568556802,3.68501164,137.69,137.62,1.4242]
[1728568557011,3.6362,137.64,137.62,1.4242]
[1728568557306,29.34962,137.69,137.62,1.4242]
[1728568557513,3.6363,137.63,137.62,1.4242]
[1728568558005,7.2702,137.68,137.59,29.3533]
[1728568558311,7.2702,137.68,137.58,296.10636589]
[1728568558507,32.91979032,137.69,137.58,210.64636589]
[1728568558807,32.91979032,137.69,137.58,213.95476]
[1728568559212,3.6363,137.63,137.58,213.95476]
[1728568559608,32.91979032,137.69,137.59,27.89]
[1728568559904,3.6362,137.64,137.59,29.2953]
[1728568560113,1.45962,137.69,137.59,29.2953]
[1728568560305,8.39962,137.69,137.6,1.4554]
[1728568560512,0.12502,137.69,137.64,27.89]
[1728568560711,0.12502,137.69,137.66,27.89]
[1728568561115,3.75982,137.69,137.66,29.2953]
[1728568562610,0.12502,137.69,137.66,29.2953]
[1728568563719,0.12502,137.75,137.68,27.89]
[1728568563919,0.12502,137.75,137.68,34.83]
[1728568564213,3.6344,137.71,137.68,34.83]
[1728568564710,0.12502,137.75,137.66,29.2953]
[1728568564711,3.6347,137.69,137.66,29.2953]
[1728568564909,28.01502,137.75,137.66,36.2353]
[1728568565113,6.94,137.74,137.66,36.2353]
[1728568565314,3.6349,137.69,137.66,36.2353]
[1728568565504,6.94,137.74,137.66,36.2353]
[1728568565709,3.6345,137.71,137.66,36.2353]
[1728568565913,0.12502,137.75,137.66,36.2353]
[1728568566308,3.6339,137.73,137.66,29.2953]
[1728568566506,0.12502,137.75,137.67,6.94]
[1728568566916,3.6346,137.7,137.67,6.94]
[1728568567107,0.12502,137.75,137.68,27.89]
[1728568567812,0.12502,137.75,137.7,27.89]
[1728568568313,0.12502,137.75,137.68,27.89]
[1728568568510,3.6346,137.7,137.68,27.89]
[1728568568710,0.12502,137.75,137.67,6.94]
[1728568568911,0.12502,137.75,137.66,29.2953]
[1728568569115,0.12502,137.75,137.68,27.89]
[1728568569818,0.12502,137.75,137.66,36.2353]
[1728568570013,27.89,137.73,137.62,27.89]
[1728568570216,27.89,137.71,137.63,7.06502]
[1728568570416,3.63553953,137.71,137.63,7.06502]
[1728568571107,36.1626,137.72,137.63,7.06502]
[1728568571108,27.89,137.69,137.63,0.12502]
[1728568571312,6.94,137.68,137.63,0.12502]
[1728568572324,3.636,137.65,137.63,0.12502]
[1728568572614,6.94,137.71,137.63,0.12502]
[1728568572813,3.6354,137.67,137.63,0.12502]
[1728568573013,6.94,137.71,137.63,0.12502]
[1728568573511,3.6357,137.66,137.63,0.12502]
[1728568573909,3.6352,137.68,137.63,0.12502]
[1728568574619,6.94,137.71,137.63,0.12502]
[1728568574820,3.6353,137.67,137.63,0.12502]
[1728568575420,10.62896082,137.78,137.65,27.89]
[1728568575615,6.94,137.79,137.67,27.89]
[1728568576113,27.89,137.78,137.67,27.89]
[1728568576309,3.6339,137.73,137.66,9.6395]
[1728568576516,7.06502,137.75,137.66,9.6395]
[1728568576822,3.6344,137.71,137.66,9.6395]
[1728568577223,7.06502,137.75,137.66,9.6395]
[1728568577424,7.06502,137.75,137.66,2.6995]
[1728568577425,3.6345,137.7,137.66,2.6995]
[1728568577618,7.06502,137.75,137.66,9.6395]
[1728568578918,3.6352,137.68,137.66,1.3498]
[1728568579126,29.2236,137.74,137.66,1.3498]
[1728568579313,1.3831,137.73,137.66,1.3498]
[1728568579515,3.6348,137.69,137.66,1.3498]
[1728568580114,3.6351,137.68,137.66,1.3498]
[1728568580321,1.3831,137.73,137.66,1.3498]
[1728568580525,1.3831,137.73,137.63,34.95502]
[1728568580817,27.89,137.71,137.63,0.12502]
[1728568581022,6.94,137.7,137.63,0.12502]
[1728568581926,3.6361,137.64,137.63,0.12502]
[1728568582124,6.94,137.7,137.63,0.12502]
[1728568582325,3.6353,137.68,137.63,0.12502]
[1728568582624,29.2731,137.73,137.64,6.94]
[1728568582625,6.94,137.72,137.64,6.94]
[1728568582816,6.94,137.72,137.65,1.3427]
[1728568583022,3.6348,137.69,137.65,1.3427]
[1728568583423,6.94,137.72,137.65,1.3427]
[1728568583629,3.6343,137.71,137.66,1.391]
[1728568583930,6.94,137.72,137.66,1.391]
[1728568583931,7.06502,137.75,137.66,1.391]
[1728568584124,3.6346,137.7,137.66,1.391]
[1728568584429,0.12502,137.75,137.66,1.391]
[1728568584629,0.12502,137.75,137.67,27.89]
[1728568584928,0.12502,137.75,137.72,27.89]
[1728568585227,0.12502,137.75,137.73,1.391]
[1728568585825,0.12502,137.75,137.73,2.7964]
[1728568586318,3.6321,137.79,137.74,27.89]
[1728568586517,0.12502,137.81,137.74,29.2937]
[1728568586722,0.12502,137.81,137.8,27.89]
[1728568586926,3.6307,137.85,137.8,27.89]
[1728568587132,8.4361,137.91,137.81,1.3387]
[1728568587335,1.3761,137.91,137.82,34.95]
[1728568587628,29.2661,137.91,137.82,7.06]
[1728568588024,3.6305,137.86,137.82,7.06]
[1728568588230,29.2661,137.91,137.82,7.06]
[1728568588623,3.6308,137.84,137.81,1.3387]
[1728568588828,29.2661,137.91,137.81,8.3987]
[1728568589226,3.6309,137.84,137.81,8.3987]
[1728568589528,29.2661,137.91,137.81,8.3987]
[1728568590332,3.6309,137.84,137.81,8.3987]
[1728568590632,29.2661,137.91,137.81,8.3987]
[1728568591021,3.6304,137.86,137.82,27.89]
[1728568591225,7.16502,137.93,137.82,27.89]
[1728568591429,7.16502,137.93,137.81,12.01529811]
[1728568591430,27.89,137.91,137.81,1.3387]
[1728568591630,1.4455,137.9,137.81,1.3387]
[1728568591839,7.04,137.89,137.81,1.3387]
[1728568592632,1.45492,137.93,137.83,27.89]
[1728568592929,3.6298,137.88,137.85,27.89]
[1728568593123,0.12502,137.93,137.83,27.89]
[1728568593531,3.6294,137.9,137.85,27.89]
[1728568593722,0.12502,137.93,137.88,27.89]
[1728568594031,0.12502,137.93,137.89,1.3293]
[1728568594233,0.12502,137.93,137.81,3.82439939]
[1728568594433,0.12502,137.93,137.82,36.2593]
[1728568595134,0.12502,137.93,137.84,27.89]
[1728568595324,3.6292,137.9,137.84,27.89]
[1728568595527,0.12502,137.93,137.84,27.89]
[1728568596039,3.6294,137.9,137.85,7.04]
[1728568596331,0.12502,137.93,137.85,7.04]
[1728568596535,0.12502,137.93,137.86,29.2727]
[1728568596731,0.12502,137.93,137.91,27.89]
[1728568596932,1.407,138.01,137.92,8.5056]
[1728568597634,3.6278,137.96,137.92,8.5056]
[1728568597833,27.89,138.03,137.92,8.5056]
[1728568598034,27.89,138.03,137.89,3.68963216]
[1728568598035,27.89,138.0,137.89,3.68963216]
[1728568598238,27.89,137.98,137.88,7.04]
[1728568598636,3.6285,137.93,137.88,8.5092]
[1728568598837,27.89,138.0,137.89,27.89]
[1728568599232,0.12502,138.05,137.96,27.89]
[1728568599536,0.12502,138.05,137.98,27.89]
[1728568599735,0.12502,138.05,137.99,7.04]
[1728568600033,3.626,138.03,137.99,7.04]
[1728568600233,0.12502,138.05,137.99,7.04]
[1728568600435,3.6259,138.03,137.99,7.04]
[1728568600738,0.12502,138.05,137.97,1.4692]
[1728568601640,3.6265,138.01,137.97,1.4692]
[1728568601834,0.12502,138.05,137.97,29.3592]
[1728568602532,3.6266,138.0,137.97,29.3592]
[1728568602732,0.12502,138.05,137.98,7.04]
[1728568603141,3.6267,138.0,137.98,7.04]
[1728568603534,0.12502,138.05,137.97,1.4692]
[1728568603742,3.6271,137.99,137.98,7.04]
[1728568604133,0.12502,138.05,137.98,7.04]
[1728568605245,3.6263,138.02,137.98,7.04]
[1728568605435,0.12502,138.05,137.98,7.04]
[1728568605941,3.6264,138.01,137.98,7.04]
[1728568606539,3.6256,138.04,137.98,7.04]
[1728568606740,0.12502,138.05,137.99,27.89]
[1728568607642,3.75032,138.05,137.99,27.89]
[1728568607832,0.12502,138.05,137.99,27.89]
[1728568608743,0.12502,138.05,138.0,7.04]
[1728568608949,0.12502,138.05,138.01,7.04]
[1728568610537,0.12502,138.05,137.97,29.3592]
[1728568610733,0.12502,138.05,137.98,7.04]
[1728568611132,0.12502,138.05,137.99,27.89]
[1728568611533,0.12502,138.05,138.02,27.89]
[1728568611739,0.12502,138.11,138.04,27.89]
[1728568611948,0.12502,138.11,138.07,27.89]
[1728568612239,0.12502,138.11,138.09,27.89]
[1728568612442,1.4329,138.2,138.09,27.89]
[1728568612637,3.6227,138.15,138.09,31.5142]
[1728568612837,1.4329,138.2,138.08,8.4582]
[1728568613038,27.89,138.19,138.08,8.4582]
[1728568613246,7.04,138.21,138.15,31.5124]
[1728568613247,3.6211,138.21,138.15,31.5124]
[1728568613438,0.12502,138.23,138.16,7.04]
[1728568613637,0.12502,138.23,138.17,7.46]
[1728568613840,3.621,138.22,138.17,7.46]
[1728568614043,0.12502,138.23,138.17,7.46]
[1728568614243,0.12502,138.23,138.16,7.46]
[1728568614447,3.6221,138.18,138.16,7.46]
[1728568614842,27.89,138.21,138.15,7.46]
[1728568615045,27.89,138.21,138.12,7.46]
[1728568615547,3.6222,138.17,138.12,7.46]
[1728568616047,2.7858,138.22,138.13,7.44]
[1728568616648,27.89,138.21,138.13,7.44]
[1728568617046,3.6226,138.16,138.13,7.44]
[1728568617243,31.58189838,138.21,138.13,7.44]
[1728568617745,31.58189838,138.21,138.11,0.12502]
[1728568618052,27.89,138.19,138.11,0.12502]
[1728568618251,7.44,138.18,138.11,0.12502]
[1728568618950,7.8217,138.18,138.11,0.12502]
[1728568619451,3.6234,138.12,138.11,0.12502]
[1728568621351,3.6231,138.14,138.11,0.12502]
[1728568621543,7.8217,138.18,138.11,0.12502]
[1728568621747,3.6234,138.12,138.11,0.12502]
[1728568622347,3.623,138.14,138.11,0.12502]
[1728568622547,31.49459976,138.19,138.11,0.12502]
[1728568623149,27.89,138.17,138.11,0.12502]
[1728568623352,3.6234,138.12,138.11,0.12502]
[1728568624356,7.44,138.16,138.11,0.12502]
[1728568625061,7.44,138.19,138.11,28.01502]
[1728568625256,3.66170902,138.21,138.11,28.01502]
[1728568625556,3.6226,138.16,138.11,28.01502]
[1728568625765,7.44,138.2,138.11,28.01502]
[1728568626054,3.623,138.14,138.11,28.01502]
[1728568626456,3.6229,138.15,138.11,31.63852]
[1728568626760,11.07183147,138.2,138.11,31.63852]
[1728568626965,3.6234,138.12,138.11,0.12502]
[1728568629368,3.6248,138.07,138.05,0.12502]
[1728568629552,7.44,138.12,138.05,0.12502]
[1728568629751,7.44,138.12,138.05,207.20555]
[1728568630358,7.44,138.12,138.05,235.09555]
[1728568630656,3.6241,138.1,138.07,3.6247]
[1728568631153,3.6241,138.1,138.06,1.351]
[1728568631355,3.6242,138.09,138.06,4.9759]
[1728568632254,8.8044,138.14,138.07,3.6247]
[1728568632769,3.6241,138.1,138.07,3.6247]
[1728568633060,8.8044,138.14,138.06,1.351]
[1728568633359,3.6245,138.09,138.06,4.976]
[1728568633669,8.8044,138.14,138.06,4.9759]
[1728568633863,3.6242,138.09,138.06,4.9759]
[1728568634269,1.3644,138.14,138.08,27.89]
[1728568634562,0.12502,138.17,138.1,27.89]
[1728568634864,3.6229,138.14,138.11,3.6236]
[1728568635272,0.12502,138.17,138.1,27.89]
[1728568635458,3.6229,138.15,138.12,3.6232]
[1728568636258,0.12502,138.17,138.14,27.89]
[1728568636460,7.44,138.25,138.15,8.8828]
[1728568636660,3.6212,138.21,138.17,3.6219]
[1728568636864,7.44,138.25,138.15,11.6199]
[1728568637358,2.7512,138.26,138.17,27.89]
[1728568637660,2.7512,138.26,138.19,27.89]
[1728568637661,1.3668,138.26,138.19,27.89]
[1728568637855,7.44,138.28,138.19,35.33]
[1728568638161,0.12502,138.29,138.21,27.89]
[1728568638866,3.6196,138.27,138.23,3.6205]
[1728568639064,0.12502,138.29,138.21,27.89]
[1728568639561,0.12502,138.29,138.19,7.44]
[1728568639562,0.12502,138.29,138.19,27.89]
[1728568639762,27.89,138.28,138.17,28.01502]
[1728568639968,3.6213,138.21,138.17,31.63712]
[1728568640164,7.44,138.27,138.17,28.01502]
[1728568640667,3.621,138.22,138.17,28.01502]
[1728568640868,7.44,138.27,138.17,28.01502]
[1728568641072,27.89,138.26,138.17,0.12502]
[1728568641370,27.89,138.24,138.17,0.12502]
[1728568641666,7.44,138.23,138.17,0.12502]
[1728568642259,7.44,138.23,138.17,28.01502]
[1728568642460,0.12502,138.29,138.2,3.6213]
[1728568642660,27.89,138.28,138.17,7.56502]
[1728568643058,3.6211,138.21,138.17,7.56502]
[1728568643461,3.59476338,138.24,138.17,0.12502]
[1728568643672,7.58,138.25,138.17,0.12502]
[1728568644073,7.58,138.25,138.17,3.74712]
[1728568644277,7.58,138.25,138.17,0.12502]
[1728568644771,3.621,138.22,138.18,3.6216]
[1728568644968,3.621,138.22,138.17,0.12502]
[1728568645273,7.58,138.25,138.17,0.12502]
[1728568645774,35.47,138.28,138.18,7.58]
[1728568645962,7.58,138.28,138.19,27.89]
[1728568646167,7.58,138.28,138.22,3.6207]
[1728568646373,3.6199,138.26,138.22,3.6207]
[1728568646672,0.12502,138.29,138.23,3.6204]
[1728568646868,3.6194,138.28,138.23,3.6204]
[1728568647070,0.12502,138.29,138.22,2.7443]
[1728568647273,0.12502,138.29,138.24,3.6201]
[1728568647866,0.12502,138.29,138.22,5.0307]
[1728568648071,3.6195,138.27,138.22,1.4101]
[1728568648268,0.12502,138.29,138.22,1.4101]
[1728568648461,7.58,138.28,138.22,1.4101]
[1728568648674,0.12502,138.29,138.22,1.4101]
[1728568650467,0.12502,138.29,138.26,27.89]
[1728568650773,0.12502,138.29,138.28,3.6192]
[1728568650969,0.12502,138.29,138.26,27.89]
[1728568651164,0.12502,138.29,138.25,3.6198]
[1728568651373,0.12502,138.29,138.24,27.89]
[1728568651569,3.74412,138.29,138.24,27.89]
[1728568651771,0.12502,138.29,138.27,3.6195]
[1728568651965,0.12502,138.29,138.24,27.89]
[1728568652167,0.12502,138.29,138.26,27.89]
[1728568652372,0.12502,138.29,138.26,3.6196]
[1728568652572,3.74402,138.29,138.26,3.6196]
[1728568652777,0.12502,138.29,138.24,27.89]
[1728568652973,0.12502,138.29,138.22,8.9901]
[1728568653376,3.74412,138.29,138.25,3.6198]
[1728568653777,3.74412,138.29,138.24,27.89]
[1728568654076,0.12518,138.31,138.26,27.89]
[1728568654379,0.12518,138.31,138.28,27.89]
[1728568654777,0.12502,138.35,138.3,27.89]
[1728568654973,0.12502,138.35,138.33,27.89]
[1728568655277,3.6162,138.4,138.33,27.89]
[1728568655474,0.12502,138.41,138.33,27.89]
[1728568655666,3.6165,138.39,138.34,3.6175]
[1728568655872,0.12502,138.41,138.31,27.89]
[1728568656172,7.70502,138.41,138.3,7.58]
[1728568656584,0.12502,138.41,138.33,27.89]
[1728568656779,3.6165,138.39,138.35,3.6172]
[1728568656975,0.12502,138.41,138.35,3.6172]
[1728568657279,0.12502,138.41,138.34,7.58]
[1728568657786,0.12502,138.41,138.35,27.89]
[1728568658175,0.12502,138.41,138.34,7.58]
[1728568658375,0.12502,138.41,138.35,27.89]
[1728568658573,3.6163,138.4,138.35,27.89]
[1728568658780,0.12502,138.41,138.35,27.89]
[1728568659076,3.6162,138.4,138.37,3.6167]
[1728568659290,0.12502,138.41,138.35,27.89]
[1728568659880,0.12502,138.41,138.36,1.3854]
[1728568660181,0.12502,138.41,138.37,27.89]
[1728568660372,0.12502,138.41,138.38,7.58]
[1728568660574,0.12502,138.47,138.38,7.58]
[1728568660575,3.6149,138.45,138.41,3.6158]
[1728568660775,0.12502,138.47,138.42,27.89]
[1728568660972,0.12502,138.47,138.39,27.89]
[1728568661176,3.615,138.45,138.41,3.6156]
[1728568661378,0.12502,138.47,138.41,27.89]
[1728568661677,0.12502,138.47,138.42,7.58]
[1728568661878,3.73942,138.47,138.43,3.6152]
[1728568662191,3.73942,138.47,138.43,7.58]
[1728568662373,0.12502,138.47,138.43,7.58]
[1728568663086,3.615,138.45,138.42,7.58]
[1728568663281,0.12502,138.47,138.42,7.58]
[1728568663484,0.12502,138.47,138.41,27.89]
[1728568663485,0.12502,138.47,138.41,35.47]
[1728568663984,0.12502,138.47,138.43,3.6151]
[1728568664277,3.73942,138.47,138.43,3.6151]
[1728568664678,3.6151,138.44,138.41,7.58]
[1728568664877,3.6151,138.44,138.37,2.8667]
[1728568664878,0.12502,138.47,138.37,2.8667]
[1728568665085,0.12502,138.47,138.37,6.4835]
[1728568665388,7.58,138.46,138.37,2.8667]
[1728568665778,0.12502,138.47,138.37,1.4112]
[1728568665979,29.358,138.45,138.36,1.4679]
[1728568666183,8.9858,138.44,138.36,1.4679]
[1728568666486,27.89,138.42,138.35,0.12502]
[1728568666681,27.89,138.42,138.35,3.74232]
[1728568666883,27.89,138.42,138.35,0.12502]
[1728568667083,3.6164,138.39,138.36,208.12063]
[1728568667288,27.89,138.42,138.36,208.12063]
[1728568667487,3.6169,138.37,138.36,208.12063]
[1728568667882,3.6169,138.37,138.36,205.91743]
[1728568668375,11.1969,138.37,138.36,199.90013]
[1728568668580,11.1969,138.37,138.36,86.32935632]
[1728568668779,3.6169,138.37,138.36,86.32935632]
[1728568668990,3.616,138.41,138.36,86.32935632]
[1728568669183,7.58,138.42,138.36,86.32935632]
[1728568669789,3.6164,138.39,138.36,86.32935632]
[1728568669989,7.58,138.42,138.36,86.32935632]
[1728568670189,11.596,138.41,138.36,86.32935632]
[1728568670395,7.98,138.42,138.36,86.32935632]
[1728568670895,3.6163,138.4,138.36,86.32935632]
[1728568671091,7.98,138.42,138.36,86.32935632]
[1728568671986,3.6169,138.37,138.36,86.32935632]
[1728568672391,7.98,138.42,138.36,86.32935632]
[1728568673107,3.6168,138.38,138.36,86.32935632]
[1728568673307,7.98,138.42,138.36,86.32935632]
[1728568673810,3.6169,138.38,138.36,86.32935632]
[1728568674106,7.98,138.42,138.36,86.32935632]
[1728568674502,7.98,138.42,138.36,89.94635632]
[1728568674706,7.98,138.42,138.36,86.32935632]
[1728568674900,7.98,138.43,138.38,27.89]
[1728568675104,7.98,138.44,138.38,27.89]
[1728568675309,7.98,138.44,138.36,86.32935632]
[1728568675708,3.6157,138.42,138.38,3.6165]
[1728568676307,3.67055037,138.43,138.36,86.32935632]
[1728568676508,7.98,138.44,138.36,86.32935632]
[1728568676911,3.6167,138.38,138.36,86.32935632]
[1728568677514,3.6169,138.37,138.36,86.32935632]
[1728568677713,7.98,138.4,138.36,86.32935632]
[1728568678017,7.98,138.43,138.36,86.32935632]
[1728568678615,3.6158,138.41,138.38,3.6166]
[1728568678816,3.6158,138.41,138.36,86.32935632]
[1728568679016,7.98,138.45,138.37,27.89]
[1728568679912,0.12502,138.47,138.4,27.89]
[1728568680115,8.10502,138.47,138.4,27.89]
[1728568680316,11.71952,138.47,138.42,3.6154]
[1728568680511,0.12502,138.47,138.42,27.89]
[1728568681014,0.12502,138.47,138.45,3.6147]
[1728568681411,0.12502,138.47,138.42,29.34]
[1728568681908,0.12502,138.47,138.41,2.92]
[1728568682114,3.6155,138.43,138.41,2.92]
[1728568682308,7.96,138.45,138.38,27.89]
[1728568682614,7.96,138.45,138.38,32.9193]
[1728568682916,7.96,138.45,138.38,1.4128]
[1728568683216,3.65380182,138.44,138.36,86.32935632]
[1728568683411,7.96,138.45,138.36,87.74405632]
[1728568683612,3.73942,138.47,138.44,3.615]
[1728568683914,0.12502,138.47,138.42,27.89]
[1728568684411,0.12502,138.47,138.43,2.7842]
[1728568684914,0.12502,138.47,138.45,3.6146]
[1728568685322,0.12502,138.47,138.43,2.7842]
[1728568686124,3.73942,138.47,138.44,3.6149]
[1728568686418,0.12502,138.47,138.44,45.08]
[1728568686719,0.12502,138.47,138.43,2.7842]
[1728568687114,3.6147,138.46,138.43,6.3993]
[1728568687415,45.20502,138.47,138.36,7.96]
[1728568687713,45.20502,138.47,138.37,2.852]
[1728568687919,45.08,138.45,138.37,2.852]
[1728568688115,0.12502,138.47,138.38,3.6166]
[1728568688116,3.616,138.41,138.38,3.6166]
[1728568688317,3.616,138.41,138.37,2.852]
[1728568688318,7.96,138.44,138.37,2.852]
[1728568689621,3.6161,138.4,138.38,3.6166]
[1728568689919,7.96,138.44,138.37,2.852]
[1728568690118,3.6156,138.42,138.38,3.6166]
[1728568690319,7.96,138.44,138.38,3.6166]
[1728568690823,3.6161,138.4,138.38,3.6166]
[1728568691121,7.96,138.44,138.37,2.852]
[1728568691318,11.62170111,138.44,138.37,2.852]
[1728568691522,7.96,138.45,138.38,45.08]
[1728568691826,3.6154,138.43,138.4,3.6159]
[1728568692120,7.96,138.45,138.38,45.08]
[1728568692417,3.6155,138.43,138.4,3.6161]
[1728568692628,7.96,138.45,138.38,45.08]
[1728568692921,3.6146,138.46,138.43,3.6152]
[1728568693420,3.6146,138.46,138.44,3.615]
[1728568693621,0.12502,138.47,138.42,45.08]
[1728568694514,7.96,138.51,138.44,45.08]
[1728568694721,0.12502,138.53,138.45,2.8309]
[1728568695015,8.08502,138.53,138.48,3.6139]
[1728568695223,8.08502,138.53,138.49,45.08]
[1728568695224,0.12502,138.53,138.49,45.08]
[1728568696423,3.73802,138.53,138.5,3.6134]
[1728568696619,0.12502,138.53,138.49,45.08]